fUST/lending_fUST_20241110
["ID","MTS","AMOUNT","RATE_DAILY","PERIOD"]
[341753490,1731203438970,-500.0,0.00031565,2]
[341753491,1731203438979,-579.15,0.00031565,2]
[341753492,1731203438988,-500.0,0.00031565,2]
[341753493,1731203438996,-500.0,0.00031565,2]
[341753494,1731203439006,-500.0,0.00031565,2]
[341753495,1731203439015,-500.0,0.00031565,2]
[341753496,1731203439024,-500.0,0.00031565,2]
[341753497,1731203439033,-518.55553677,0.00031565,2]
[341753498,1731203439042,-100000.0,0.00031565,2]
[341753499,1731203439051,-45345.2425892,0.00031565,2]
[341753500,1731203439060,-3550.43,0.00031565,120]
[341753501,1731203439070,-155.40537444,0.00031565,2]
[341753502,1731203439078,-475.63223848,0.00031565,2]
[341753503,1731203439088,-280.62238361,0.00031566,2]
[341753504,1731203439097,-533.16391366,0.00031566,2]
[341753505,1731203439106,-168.96458107,0.00031566,2]
[341753506,1731203439115,-500.0,0.00031567,2]
[341753507,1731203439125,-500.0,0.00031569,2]
[341753508,1731203439134,-500.0,0.00031569,2]
[341753509,1731203439143,-533.91099109,0.00031569,2]
[341753510,1731203439152,-500.0,0.00031569,2]
[341753511,1731203439161,-292.30204755,0.00031569,2]
[341753512,1731203439171,-500.0,0.00031569,2]
[341753513,1731203439180,-242.30580786,0.0003157,2]
[341753514,1731203439189,-310.36802854,0.00031575,2]
[341753515,1731203439198,-1000.0,0.00031588,2]
[341753516,1731203439207,-500.0,0.0003159,2]
[341753517,1731203439216,-276.60242601,0.00031591,2]
[341753518,1731203439226,-500.0,0.00031591,2]
[341753519,1731203439235,-500.0,0.00031591,120]
[341753520,1731203439244,-2500.0,0.00031591,3]
[341753521,1731203439254,-500.0,0.00031592,2]
[341753522,1731203439263,-15907.08891463,0.00031593,3]
[341753523,1731203439272,-242.30580786,0.00031593,2]
[341753524,1731203439282,-310.36802854,0.00031593,2]
[341753525,1731203439291,-8222.195061,0.000316,2]
[341753526,1731203439301,-8222.19506097,0.000316,2]
[341753527,1731203439310,-8222.19506097,0.000316,2]
[341753528,1731203439321,-8222.19506097,0.000316,2]
[341753529,1731203439330,-2500.0,0.000316,3]
[341753530,1731203439339,-500.0,0.000316,36]
[341753531,1731203439348,-2500.0,0.000316,3]
[341753532,1731203439358,-5083.37051602,0.00031665,31]
[341753533,1731203439367,-5000.0,0.00031665,31]
[341753534,1731203439378,-557.97101017,0.00031673,5]
[341753535,1731203439388,-507.37268708,0.00031673,5]
[341753536,1731203439397,-490.68344807,0.00031673,5]
[341753537,1731203439406,-500.0,0.00031673,2]
[341753538,1731203439416,-500.0,0.00031673,5]
[341753539,1731203439425,-500.0,0.00031673,5]
[341753540,1731203439434,-500.0,0.00031687,2]
[341753541,1731203439443,-500.0,0.00031687,2]
[341753542,1731203439452,-282.9826732,0.00031687,2]
[341753543,1731203439462,-9737.12268289,0.00031688,7]
[341753544,1731203439471,-150.741,0.00031689,2]
[341753545,1731203439481,-529.0,0.00031689,2]
[341753546,1731203439490,-1130.0,0.00031689,2]
[341753547,1731203439500,-2393.0,0.00031689,2]
[341753548,1731203439509,-473.89959543,0.00031692,2]
[341753549,1731203439519,-500.0,0.00031692,2]
[341753550,1731203439528,-500.0,0.00031692,2]
[341753551,1731203439539,-256.63314994,0.00031692,2]
[341753552,1731203439549,-286.60096441,0.00031692,2]
[341753553,1731203439559,-227.9195152,0.00031692,2]
[341753554,1731203439568,-500.0,0.00031692,2]
[341753555,1731203439579,-500.0,0.00031692,2]
[341753556,1731203439590,-647.89326843,0.00031692,2]
[341753557,1731203439600,-500.0,0.00031692,2]
[341753558,1731203439610,-316.63227809,0.00031692,2]
[341753559,1731203439622,-500.0,0.00031692,2]
[341753560,1731203439631,-500.0,0.00031692,2]
[341753561,1731203439640,-500.0,0.00031692,2]
[341753562,1731203439650,-500.0,0.00031692,2]
[341753563,1731203439661,-180.0,0.00031692,2]
[341753564,1731203439672,-190.97656214,0.00031692,2]
[341753565,1731203439682,-152.56901,0.00031692,7]
[341753566,1731203439691,-151.0,0.00031692,7]
[341753567,1731203439700,-151.0,0.00031692,7]
[341753568,1731203439709,-151.0,0.00031692,7]
[341753569,1731203439718,-193.748941,0.00031692,7]
[341753570,1731203439727,-157.530062,0.00031692,7]
[341753571,1731203439737,-500.0,0.00031692,7]
[341753572,1731203439746,-240.948232,0.00031692,7]
[341753573,1731203439755,-240.948232,0.00031692,7]
[341753574,1731203439764,-240.948232,0.00031692,7]
[341753575,1731203439774,-240.948232,0.00031692,7]
[341753576,1731203439783,-240.948232,0.00031692,7]
[341753577,1731203439792,-240.948232,0.00031692,7]
[341753578,1731203439801,-240.948232,0.00031692,7]
[341753579,1731203439810,-240.948232,0.00031692,7]
[341753580,1731203439819,-240.948232,0.00031692,7]
[341753581,1731203439828,-240.948232,0.00031692,7]
[341753583,1731203439837,-240.948232,0.00031692,7]
[341753584,1731203439846,-240.948232,0.00031692,7]
[341753585,1731203439855,-240.948232,0.00031692,7]
[341753586,1731203439864,-240.948232,0.00031692,7]
[341753587,1731203439874,-240.948232,0.00031692,7]
[341753588,1731203439883,-240.948232,0.00031692,7]
[341753589,1731203439892,-240.948232,0.00031692,7]
[341753590,1731203439901,-240.948232,0.00031692,7]
[341753591,1731203439911,-240.948232,0.00031692,7]
[341753592,1731203439920,-240.948233,0.00031692,7]
[341753593,1731203439930,-500.0,0.00031692,2]
[341753594,1731203439939,-500.0,0.00031692,2]
[341753595,1731203439949,-747.36,0.00031692,2]
[341753596,1731203439958,-384.10101113,0.00031693,2]
[341753597,1731203439967,-335.23287432,0.00031693,2]
[341753598,1731203439976,-621395.2783899,0.00031693,10]
[341753604,1731203440421,-190.948,0.00031689,2]
[341753606,1731203440430,-3793.73651635,0.00031693,10]
[341753620,1731203443644,-1324.41,0.00031593,2]
[341753621,1731203443657,-2873.094,0.00031593,2]
[341753622,1731203443670,-319.49848464,0.00031593,2]
[341753641,1731203446572,-87.99857183,0.00031593,2]
[341753642,1731203446586,-510.31017129,0.00031673,2]
[341753643,1731203446597,-26144.60174292,0.00031693,10]
[341753644,1731203543582,159.472161,0.00013973,2]
[341753645,1731203649521,471.0,0.00031693,120]
[341753646,1731203859975,3274.52204401,0.00031693,30]
[341753647,1731204230901,159.472161,0.00013973,2]
[341753650,1731204491534,215.0,0.00027,120]
[341753652,1731204554200,-256.86567382,0.00021561,2]
[341753653,1731204554222,-159.472161,0.00022174,2]
[341753654,1731204554243,-184.329,0.00022459,2]
[341753655,1731204554264,-300.0,0.00023716,2]
[341753656,1731204554286,-3842.13234518,0.00023717,2]
[341753696,1731204632696,-3745.28186547,0.00023717,2]
[341753718,1731204638969,-2347.58578935,0.00023717,2]
[341753719,1731204638978,-607.63888889,0.00024021,2]
[341753720,1731204638987,-165.0,0.00025,2]
[341753721,1731204638996,-300.0,0.00026088,2]
[341753722,1731204639006,-9935.0,0.00026089,4]
[341753723,1731204639015,-200.0,0.00028,120]
[341753724,1731204639024,-9935.0,0.00028697,7]
[341753726,1731204639034,-181.66143795,0.00029496,2]
[341753727,1731204639046,-101.44126905,0.00029496,2]
[341753728,1731204639056,-235.899474,0.00029502,2]
[341753729,1731204639066,-476.83687328,0.0003,2]
[341753730,1731204639075,-200.0,0.0003,120]
[341753731,1731204639085,-500.0,0.00030136,2]
[341753732,1731204639094,-159.472161,0.00030374,2]
[341753733,1731204639103,-500.0,0.0003041,2]
[341753734,1731204639112,-500.0,0.00030684,2]
[341753735,1731204639121,-500.0,0.00030958,2]
[341753736,1731204639131,-500.0,0.00031232,2]
[341753737,1731204639139,-412.7732959,0.0003146,2]
[341753738,1731204639245,-412.77329584,0.00031479,2]
[341753739,1731204639255,-412.77329584,0.00031498,2]
[341753740,1731204639264,-153.58,0.000315,31]
[341753741,1731204639273,-153.58,0.000315,31]
[341753742,1731204639282,-153.58,0.000315,31]
[341753743,1731204639291,-153.58,0.000315,31]
[341753744,1731204639300,-153.58,0.000315,31]
[341753745,1731204639310,-153.58,0.000315,31]
[341753746,1731204639319,-153.58,0.000315,31]
[341753747,1731204639328,-153.58,0.000315,31]
[341753748,1731204639337,-47290.45096209,0.000315,60]
[341753749,1731204639346,-850.81732333,0.000315,7]
[341753750,1731204639355,-500.0,0.00031506,2]
[341753751,1731204639364,-412.77329584,0.00031517,2]
[341753752,1731204639373,-412.77329584,0.00031537,2]
[341753753,1731204639382,-200.26,0.0003155,10]
[341753754,1731204639391,-196.26,0.0003155,10]
[341753755,1731204639400,-412.77329584,0.00031556,2]
[341753756,1731204639410,-37917.7026826,0.0003156,5]
[341753757,1731204639420,-500.0,0.00031564,2]
[341753758,1731204639429,-184.19877999,0.00031565,2]
[341753759,1731204639438,-500.0,0.00031565,7]
[341753760,1731204639447,-500.0,0.00031565,2]
[341753761,1731204639456,-500.0,0.00031566,2]
[341753762,1731204639465,-9935.0,0.00031567,14]
[341753763,1731204639474,-796.93,0.0003157,3]
[341753764,1731204639483,-412.77329584,0.00031575,2]
[341753765,1731204639492,-2500.0,0.00031582,3]
[341753766,1731204639501,-2500.0,0.00031582,3]
[341753767,1731204639510,-392.71442892,0.00031588,2]
[341753768,1731204639519,-503.55669611,0.00031588,2]
[341753769,1731204639528,-475.63223848,0.00031588,2]
[341753770,1731204639538,-276.60242601,0.00031588,2]
[341753771,1731204639547,-595.07821046,0.00031588,2]
[341753772,1731204639555,-500.0,0.00031588,2]
[341753773,1731204639564,-575.85,0.00031588,2]
[341753774,1731204639574,-297.6054,0.00031588,2]
[341753775,1731204639584,-500.0,0.00031588,2]
[341753776,1731204639593,-500.0,0.00031588,120]
[341753777,1731204639603,-51661.3725892,0.00031588,2]
[341753778,1731204639612,-508.46147774,0.00031588,2]
[341753779,1731204639621,-532.45683424,0.00031588,2]
[341753780,1731204639631,-175.16580046,0.00031588,2]
[341753781,1731204639640,-155.40537444,0.00031588,2]
[341753782,1731204639649,-280.62238361,0.00031589,2]
[341753783,1731204639660,-533.16391366,0.00031589,2]
[341753784,1731204639669,-2500.0,0.00031591,3]
[341753785,1731204639679,-1000.0,0.00031593,2]
[341753786,1731204639689,-161.53720524,0.00031593,2]
[341753787,1731204639698,-161.53720524,0.00031594,2]
[341753788,1731204639706,-15907.08891463,0.00031594,3]
[341753789,1731204639715,-161.53720524,0.00031594,2]
[341753790,1731204639725,-412.77329584,0.00031594,2]
[341753791,1731204639734,-500.0,0.00031599,2]
[341753792,1731204639743,-500.0,0.00031599,2]
[341753793,1731204639752,-533.91099109,0.00031599,2]
[341753794,1731204639761,-500.0,0.00031599,2]
[341753795,1731204639770,-500.0,0.00031599,2]
[341753796,1731204639779,-292.30204755,0.00031599,2]
[341753797,1731204639788,-500.0,0.00031599,2]
[341753798,1731204639797,-500.0,0.00031599,2]
[341753799,1731204639806,-8222.195061,0.000316,2]
[341753800,1731204639816,-8222.19506097,0.000316,2]
[341753801,1731204639824,-8222.19506097,0.000316,2]
[341753802,1731204639834,-8222.19506097,0.000316,2]
[341753803,1731204639843,-2500.0,0.000316,3]
[341753804,1731204639852,-2500.0,0.000316,3]
[341753805,1731204639862,-151.380626,0.000316,2]
[341753806,1731204639871,-44553.80982213,0.000316,3]
[341753807,1731204639880,-30000.0,0.000316,4]
[341753808,1731204639890,-30000.0,0.000316,2]
[341753809,1731204639899,-500.0,0.000316,36]
[341753810,1731204639911,-1007.0444975,0.00031634,2]
[341753811,1731204639920,-500.0,0.00031664,2]
[341753812,1731204639930,-5083.37051602,0.00031665,34]
[341753813,1731204639938,-5000.0,0.00031665,34]
[341753814,1731204639947,-5000.0,0.00031665,33]
[341753815,1731204639957,-5000.0,0.00031665,30]
[341753816,1731204639970,-282.9826732,0.00031672,2]
[341753817,1731204639980,-3550.43,0.00031672,120]
[341753818,1731204639989,-500.0,0.00031673,5]
[341753819,1731204639999,-507.37268708,0.00031673,5]
[341753820,1731204640009,-501.33848333,0.00031673,5]
[341753821,1731204640018,-500.0,0.00031673,5]
[341753822,1731204640028,-500.0,0.00031673,5]
[341753823,1731204640038,-500.0,0.00031673,5]
[341753824,1731204640048,-500.0,0.00031673,2]
[341753825,1731204640058,-150.0,0.00031689,2]
[341753826,1731204640067,-203.697,0.00031689,2]
[341753827,1731204640077,-529.0,0.00031689,2]
[341753828,1731204640086,-1130.0,0.00031689,2]
[341753829,1731204640095,-2393.0,0.00031689,2]
[341753830,1731204640105,-2627.12143346,0.0003169,15]
[341753831,1731204640115,-35645.54152485,0.0003169,2]
[341753832,1731204640125,-150.01,0.00031692,2]
[341753833,1731204640135,-2710.63640511,0.00031692,2]
[341753834,1731204640145,-500.0,0.00031693,2]
[341753835,1731204640157,-500.0,0.00031693,2]
[341753836,1731204640169,-500.0,0.00031693,2]
[341753837,1731204640178,-366.45207757,0.00031693,2]
[341753838,1731204640188,-500.0,0.00031693,2]
[341753839,1731204640197,-409.22740496,0.00031693,2]
[341753840,1731204640206,-500.0,0.00031693,2]
[341753841,1731204640216,-176.82532032,0.00031693,2]
[341753842,1731204640225,-172.49178045,0.00031693,2]
[341753843,1731204640234,-500.0,0.00031693,2]
[341753844,1731204640244,-500.0,0.00031693,2]
[341753845,1731204640254,-166.02942455,0.00031693,2]
[341753846,1731204640263,-638.86983056,0.00031693,2]
[341753848,1731204640272,-366.54823765,0.00031693,2]
[341753850,1731204640281,-500.0,0.00031693,2]
[341753852,1731204640291,-500.0,0.00031693,2]
[341753853,1731204640300,-500.0,0.00031693,2]
[341753855,1731204640310,-500.0,0.00031693,2]
[341753856,1731204640319,-500.0,0.00031693,2]
[341753857,1731204640328,-500.0,0.00031693,2]
[341753858,1731204640338,-500.0,0.00031693,2]
[341753859,1731204640347,-300.0,0.00031693,2]
[341753860,1731204640356,-2545.37062309,0.00031693,4]
[341753861,1731204640365,-239.91711,0.00031693,7]
[341753862,1731204640374,-151.0,0.00031693,7]
[341753863,1731204640384,-153.083267,0.00031693,7]
[341753864,1731204640393,-155.246859,0.00031693,7]
[341753865,1731204640403,-151.0,0.00031693,7]
[341753866,1731204640416,-155.438035,0.00031693,7]
[341753867,1731204640425,-153.601071,0.00031693,7]
[341753868,1731204640434,-151.611924,0.00031693,7]
[341753869,1731204640444,-152.883535,0.00031693,7]
[341753870,1731204640453,-151.0,0.00031693,3]
[341753871,1731204640462,-151.0,0.00031693,3]
[341753872,1731204640471,-151.0,0.00031693,3]
[341753873,1731204640481,-151.0,0.00031693,3]
[341753874,1731204640490,-151.0,0.00031693,3]
[341753875,1731204640499,-263.774245,0.00031693,3]
[341753876,1731204640508,-152.089447,0.00031693,7]
[341753878,1731204640517,-151.0,0.00031693,7]
[341753879,1731204640526,-151.0,0.00031693,7]
[341753880,1731204640535,-177.241006,0.00031693,7]
[341753881,1731204640544,-151.0,0.00031693,7]
[341753882,1731204640553,-164.261892,0.00031693,7]
[341753883,1731204640562,-151.0,0.00031693,7]
[341753884,1731204640571,-154.847956,0.00031693,7]
[341753885,1731204640581,-151.0,0.00031693,7]
[341753886,1731204640590,-151.0,0.00031693,7]
[341753887,1731204640599,-151.0,0.00031693,7]
[341753888,1731204640609,-153.169852,0.00031693,7]
[341753889,1731204640618,-151.0,0.00031693,7]
[341753890,1731204640627,-151.0,0.00031693,7]
[341753891,1731204640636,-151.0,0.00031693,7]
[341753892,1731204640645,-153.422413,0.00031693,7]
[341753893,1731204640656,-546.400027,0.00031693,7]
[341753894,1731204640665,-546.400027,0.00031693,7]
[341753895,1731204640673,-546.400027,0.00031693,7]
[341753896,1731204640682,-546.400027,0.00031693,7]
[341753897,1731204640691,-546.400027,0.00031693,7]
[341753898,1731204640700,-546.400027,0.00031693,7]
[341753899,1731204640709,-546.400027,0.00031693,7]
[341753900,1731204640718,-546.400027,0.00031693,7]
[341753901,1731204640727,-546.400027,0.00031693,7]
[341753902,1731204640736,-546.400027,0.00031693,7]
[341753903,1731204640746,-546.400027,0.00031693,7]
[341753904,1731204640755,-546.400027,0.00031693,7]
[341753905,1731204640764,-546.400027,0.00031693,7]
[341753906,1731204640773,-546.400027,0.00031693,7]
[341753907,1731204640782,-546.400027,0.00031693,7]
[341753908,1731204640791,-546.400027,0.00031693,7]
[341753909,1731204640800,-546.400027,0.00031693,7]
[341753910,1731204640810,-546.400027,0.00031693,7]
[341753911,1731204640819,-546.400027,0.00031693,7]
[341753912,1731204640828,-546.400032,0.00031693,7]
[341753913,1731204640837,-636.761893,0.00031693,7]
[341753914,1731204640846,-636.761893,0.00031693,7]
[341753915,1731204640856,-636.761893,0.00031693,7]
[341753916,1731204640865,-636.761893,0.00031693,7]
[341753917,1731204640874,-636.761893,0.00031693,7]
[341753918,1731204640884,-636.761893,0.00031693,7]
[341753919,1731204640893,-636.761893,0.00031693,7]
[341753920,1731204640903,-636.761893,0.00031693,7]
[341753921,1731204640913,-636.761893,0.00031693,7]
[341753922,1731204640922,-636.761893,0.00031693,7]
[341753923,1731204640930,-636.761893,0.00031693,7]
[341753924,1731204640939,-636.761893,0.00031693,7]
[341753925,1731204640948,-636.761893,0.00031693,7]
[341753926,1731204640957,-636.761893,0.00031693,7]
[341753927,1731204640971,-636.761893,0.00031693,7]
[341753928,1731204640980,-636.761893,0.00031693,7]
[341753929,1731204640989,-636.761893,0.00031693,7]
[341753930,1731204640998,-636.761893,0.00031693,7]
[341753931,1731204641008,-636.761893,0.00031693,7]
[341753932,1731204641018,-636.761901,0.00031693,7]
[341753933,1731204641027,-151.0,0.00031693,7]
[341753934,1731204641040,-151.0,0.00031693,7]
[341753935,1731204641050,-151.0,0.00031693,7]
[341753936,1731204641060,-151.0,0.00031693,7]
[341753937,1731204641069,-158.636664,0.00031693,7]
[341753938,1731204641078,-157.530062,0.00031693,7]
[341753939,1731204641087,-151.0,0.00031693,7]
[341753940,1731204641096,-151.0,0.00031693,7]
[341753941,1731204641107,-151.0,0.00031693,7]
[341753942,1731204641126,-151.0,0.00031693,7]
[341753943,1731204641135,-151.0,0.00031693,7]
[341753944,1731204641144,-151.0,0.00031693,7]
[341753945,1731204641154,-231.48454,0.00031693,7]
[341753946,1731204641166,-153.28147,0.00031693,7]
[341753947,1731204641175,-747.36,0.00031693,2]
[341753948,1731204641184,-384.10101113,0.00031693,2]
[341753949,1731204641193,-335.23287432,0.00031693,2]
[341753950,1731204641203,-850.81732333,0.00031694,7]
[341753951,1731204641212,-850.81732333,0.00031694,7]
[341753952,1731204641221,-449132.91418698,0.00031694,10]
[341753953,1731204641290,-1074.70343851,0.00031694,10]
[341753968,1731204644052,-150.112233,0.000316,15]
[341753969,1731204644062,-150.112233,0.000316,13]
[341753970,1731204644072,-150.112233,0.000316,12]
[341753971,1731204644082,-150.112233,0.000316,13]
[341753972,1731204644092,-31039.94739458,0.00031694,10]
[341753980,1731204646714,-918.64713147,0.00031692,2]
[341753982,1731205006305,160.787367,0.00013973,2]
[341753984,1731205487243,607.63888889,0.00020844,2]
[341754061,1731205703617,3567.5877352,0.000125,2]
[341754063,1731205735152,161.148609,0.00013973,2]
[341754123,1731205832791,-161.148609,0.00022174,2]
[341754125,1731205832801,-258.36363475,0.00023,2]
[341754140,1731205832943,-1669.22222121,0.00023,2]
[341754142,1731205832952,-607.63888889,0.00023402,2]
[341754144,1731205832962,-164.0,0.00025,2]
[341754146,1731205832971,-226.24950618,0.00025,2]
[341754148,1731205832980,-1905.72916248,0.0002509,2]
[341754150,1731205832989,-3243.0577333,0.00026786,2]
[341754152,1731205832998,-300.0,0.00026848,2]
[341754154,1731205833007,-2500.0,0.000269,3]
[341754156,1731205833016,-235.0,0.0003,2]
[341754158,1731205833025,-11816.32372829,0.0003,2]
[341754160,1731205833037,-4341.02109577,0.0003,2]
[341754162,1731205833046,-379.5996253,0.00030036,2]
[341754164,1731205833055,-567.21154889,0.00030136,7]
[341754166,1731205833065,-518.55553677,0.00030136,2]
[341754168,1731205833074,-500.0,0.00030136,2]
[341754170,1731205833084,-575.99,0.00030136,2]
[341754172,1731205833093,-500.0,0.00030136,2]
[341754174,1731205833102,-100000.0,0.00030136,2]
[341754176,1731205833111,-1874.03,0.00030136,2]
[341754178,1731205833120,-3402.49,0.00030136,120]
[341754180,1731205833129,-500.0,0.00030136,2]
[341754183,1731205833143,-500.0,0.00030136,2]
[341754184,1731205833152,-500.0,0.00030136,2]
[341754186,1731205833162,-500.0,0.00030136,2]
[341754188,1731205833171,-500.0,0.00030136,2]
[341754190,1731205833181,-500.0,0.00030136,120]
[341754192,1731205833190,-500.0,0.00030136,2]
[341754195,1731205833200,-500.0,0.00030136,2]
[341754197,1731205833210,-557.97101017,0.000302,5]
[341754199,1731205833220,-379.59962527,0.00030258,2]
[341754201,1731205833229,-161.148609,0.00030374,2]
[341754203,1731205833238,-183.67558168,0.0003041,2]
[341754261,1731205839456,-316.32441832,0.0003041,2]
[341754262,1731205839466,-575.99,0.0003041,2]
[341754263,1731205839475,-1874.03,0.0003041,2]
[341754265,1731205839484,-246.28781209,0.0003041,120]
[341754266,1731205839493,-340.1472327,0.0003041,2]
[341754267,1731205839503,-500.0,0.0003041,2]
[341754268,1731205839512,-490.68344807,0.00030475,5]
[341754269,1731205839521,-379.59962527,0.00030481,2]
[341754270,1731205839530,-500.0,0.00030684,2]
[341754271,1731205839539,-575.99,0.00030684,2]
[341754272,1731205839548,-1874.03,0.00030684,2]
[341754273,1731205839558,-500.0,0.00030684,2]
[341754274,1731205839567,-379.59962527,0.00030703,2]
[341754275,1731205839576,-160.124,0.0003091,10]
[341754276,1731205839586,-379.59962527,0.00030926,2]
[341754277,1731205839595,-500.0,0.00030958,2]
[341754278,1731205839604,-575.99,0.00030958,2]
[341754279,1731205839613,-1874.03,0.00030958,2]
[341754280,1731205839622,-500.0,0.00030958,2]
[341754282,1731205839631,-3402.49,0.00031095,120]
[341754283,1731205839649,-379.59962527,0.00031148,2]
[341754284,1731205839658,-500.0,0.00031232,2]
[341754285,1731205839668,-575.99,0.00031232,2]
[341754286,1731205839677,-1874.03,0.00031232,2]
[341754288,1731205839687,-500.0,0.00031232,2]
[341754290,1731205839696,-379.59962527,0.00031371,2]
[341754291,1731205839706,-9737.12268189,0.00031487,4]
[341754292,1731205839715,-11370.04573419,0.00031493,7]
[341754293,1731205839724,-1000.000001,0.000315,7]
[341754294,1731205839733,-166.34,0.000315,31]
[341754295,1731205839742,-166.34,0.000315,31]
[341754296,1731205839751,-166.34,0.000315,31]
[341754297,1731205839761,-166.34,0.000315,31]
[341754298,1731205839770,-166.34,0.000315,31]
[341754299,1731205839779,-166.34,0.000315,31]
[341754300,1731205839788,-166.34,0.000315,31]
[341754301,1731205839798,-166.34,0.000315,31]
[341754302,1731205839807,-166.34,0.000315,31]
[341754303,1731205839816,-166.34,0.000315,31]
[341754304,1731205839825,-166.34,0.000315,31]
[341754305,1731205839834,-166.34,0.000315,31]
[341754306,1731205839843,-242.30580786,0.000315,2]
[341754307,1731205839852,-217.89971785,0.00031506,2]
[341754308,1731205839862,-575.99,0.00031506,2]
[341754309,1731205839871,-1874.03,0.00031506,2]
[341754310,1731205839880,-500.0,0.00031506,2]
[341754311,1731205839890,-1000.0,0.00031592,2]
[341754312,1731205839899,-379.59962527,0.00031593,2]
[341754313,1731205839908,-747.36,0.00031599,2]
[341754314,1731205839918,-16136.06056194,0.000316,2]
[341754315,1731205839927,-474.523067,0.000316,3]
[341754316,1731205839936,-500.0,0.000316,36]
[341754317,1731205839945,-626.06933817,0.00031673,5]
[341754318,1731205839955,-221.76789194,0.00031673,5]
[341754319,1731205839964,-16513.36350006,0.00031673,2]
[341754320,1731205839973,-1007.0444975,0.00031685,2]
[341754321,1731205839982,-2393.0,0.00031689,2]
[341754322,1731205839991,-1130.0,0.00031689,2]
[341754323,1731205840000,-199.14467195,0.00031689,2]
[341754324,1731205840010,-70072.86853463,0.0003169,2]
[341754325,1731205840019,-500.0,0.00031691,7]
[341754326,1731205840028,-500.0,0.00031692,2]
[341754327,1731205840037,-500.0,0.00031692,2]
[341754328,1731205840046,-256.5164543,0.00031692,2]
[341754329,1731205840056,-500.0,0.00031692,2]
[341754330,1731205840066,-286.45918348,0.00031692,2]
[341754331,1731205840075,-647.20888139,0.00031692,2]
[341754332,1731205840084,-316.22059719,0.00031692,2]
[341754333,1731205840094,-316.58376635,0.00031692,2]
[341754334,1731205840103,-500.0,0.00031692,2]
[341754335,1731205840112,-500.0,0.00031692,2]
[341754336,1731205840122,-500.0,0.00031692,2]
[341754337,1731205840131,-473.77772423,0.00031692,2]
[341754338,1731205840143,-500.0,0.00031692,2]
[341754339,1731205840152,-500.0,0.00031692,2]
[341754340,1731205840161,-500.0,0.00031692,2]
[341754341,1731205840171,-179.561518,0.00031692,2]
[341754342,1731205840180,-409.9644713,0.00031692,2]
[341754343,1731205840190,-341.66094917,0.00031692,2]
[341754344,1731205840200,-203.0475961,0.00031692,2]
[341754345,1731205840209,-502.8964963,0.00031692,2]
[341754346,1731205840218,-2557.52854987,0.00031692,2]
[341754347,1731205840228,-384.10101113,0.00031693,2]
[341754348,1731205840237,-335.23287432,0.00031693,2]
[341754350,1731205840246,-567.21154889,0.00031693,7]
[341754352,1731205840256,-567.21154889,0.00031693,7]
[341754354,1731205840265,-460098.1985601,0.00031693,10]
[341754385,1731205843890,-515.71949472,0.00030136,2]
[341754386,1731205843903,-500.0,0.00030475,5]
[341754387,1731205843913,-500.0,0.00031673,5]
[341754388,1731205843923,-529.0,0.00031689,2]
[341754389,1731205843932,-328.28295147,0.00031693,10]
[341754456,1731205846902,-10000.52945,0.00031693,10]
[341754464,1731206103141,10000.0,0.00020844,2]
[341754486,1731206426760,161.715152,0.00013973,2]
[341754487,1731206606151,607.63888889,0.00020844,2]
[341754661,1731207032232,-161.715152,0.00023435,2]
[341754662,1731207032242,-150.42261966,0.00024658,2]
[341754663,1731207032260,-32.02212335,0.00025,2]